[Event "Campeonato de España Universitario Relámpago"]
[Site "Zaragoza, Spain"]
[Date "2024.04.24"]
[Round "9.4"]
[White "Quispe Arteaga, Gabriel"]
[Black "Sanz Wawer, Daniel"]
[Result "1-0"]
[TimeControl "3 min + 2 sg"]
[WhiteFideId "32059809"]
[BlackFideId "1185543"]
[WhiteElo "2304"]
[BlackElo "2214"]

1. c4 {[%clk 00:03:03]} e6 {[%clk 00:03:04]} {[%emt 00:00:01]} 2. Nc3 {[%clk
00:03:04]} d5 {[%clk 00:03:04]} {[%emt 00:00:03]} 3. d4 {[%clk 00:03:05]} Nf6
{[%clk 00:03:04]} {[%emt 00:00:02]} 4. cxd5 {[%clk 00:03:05]} {[%emt 00:00:01]}
exd5 {[%clk 00:03:02]} {[%emt 00:00:04]} 5. Bg5 {[%clk 00:03:06]} Nbd7 {[%clk
00:03:03]} {[%emt 00:00:02]} 6. e3 {[%clk 00:03:06]} {[%emt 00:00:02]} Be7
{[%clk 00:03:00]} {[%emt 00:00:04]} 7. Bd3 {[%clk 00:03:06]} {[%emt 00:00:02]}
c6 {[%clk 00:02:59]} {[%emt 00:00:03]} 8. Nge2 {[%clk 00:02:45]} {[%emt
00:00:24]} O-O {[%clk 00:02:59]} {[%emt 00:00:02]} 9. Qc2 {[%clk 00:02:45]}
{[%emt 00:00:02]} Re8 {[%clk 00:02:57]} {[%emt 00:00:04]} 10. O-O {[%clk
00:02:43]} {[%emt 00:00:04]} Nf8 {[%clk 00:02:43]} {[%emt 00:00:16]} 11. Rab1
{[%clk 00:02:38]} {[%emt 00:00:07]} Ne4 {[%clk 00:02:19]} {[%emt 00:00:26]} 12.
Bxe7 {[%clk 00:02:27]} {[%emt 00:00:14]} Qxe7 {[%clk 00:02:19]} {[%emt
00:00:01]} 13. Bxe4 {[%clk 00:02:27]} {[%emt 00:00:02]} dxe4 {[%clk 00:02:19]}
{[%emt 00:00:03]} 14. Ng3 {[%clk 00:02:27]} {[%emt 00:00:02]} f5 {[%clk
00:02:11]} {[%emt 00:00:10]} 15. f3 {[%clk 00:02:16]} {[%emt 00:00:13]} exf3
{[%clk 00:01:29]} {[%emt 00:00:43]} 16. Rxf3 {[%clk 00:02:16]} {[%emt
00:00:01]} Ng6 {[%clk 00:01:25]} {[%emt 00:00:07]} 17. Kh1 {[%clk 00:01:52]}
{[%emt 00:00:26]} Nh4 {[%clk 00:01:13]} {[%emt 00:00:14]} 18. Rf2 {[%clk
00:01:53]} {[%emt 00:00:01]} Be6 {[%clk 00:01:01]} {[%emt 00:00:13]} 19. Re1
{[%clk 00:01:53]} {[%emt 00:00:02]} Rad8 {[%clk 00:01:01]} {[%emt 00:00:03]} 20.
Kg1 {[%clk 00:01:29]} {[%emt 00:00:26]} Kh8 {[%clk 00:00:58]} {[%emt 00:00:05]}
21. a3 {[%clk 00:01:26]} {[%emt 00:00:05]} Qg5 {[%clk 00:00:57]} {[%emt
00:00:03]} 22. Qd1 {[%clk 00:01:10]} {[%emt 00:00:18]} Bc8 {[%clk 00:00:40]}
{[%emt 00:00:18]} 23. Nf1 {[%clk 00:00:46]} {[%emt 00:00:26]} c5 {[%clk
00:00:22]} {[%emt 00:00:20]} 24. d5 {[%clk 00:00:47]} {[%emt 00:00:01]} Ng6
{[%clk 00:00:21]} {[%emt 00:00:03]} 25. Ne2 {[%clk 00:00:34]} {[%emt 00:00:15]}
Qf6 {[%clk 00:00:15]} {[%emt 00:00:08]} 26. Nf4 {[%clk 00:00:33]} {[%emt
00:00:04]} Nxf4 {[%clk 00:00:15]} {[%emt 00:00:01]} 27. exf4 {[%clk 00:00:34]}
{[%emt 00:00:01]} Rxe1 {[%clk 00:00:12]} {[%emt 00:00:06]} 28. Qxe1 {[%clk
00:00:35]} {[%emt 00:00:01]} Qd4 {[%clk 00:00:12]} {[%emt 00:00:02]} 29. Qe7
{[%clk 00:00:18]} {[%emt 00:00:19]} Qf6 {[%clk 00:00:11]} {[%emt 00:00:02]} 30.
Qxf6 gxf6 {[%clk 00:00:13]} 31. Rd2 {[%clk 00:00:19]} Rd6 {[%clk 00:00:11]}
{[%emt 00:00:04]} 32. Ne3 {[%clk 00:00:20]} {[%emt 00:00:01]} b5 {[%clk
00:00:12]} 33. a4 {[%clk 00:00:20]} {[%emt 00:00:02]} a6 {[%clk 00:00:12]}
{[%emt 00:00:02]} 34. axb5 {[%clk 00:00:18]} {[%emt 00:00:04]} axb5 {[%clk
00:00:13]} 35. Rc2 {[%clk 00:00:19]} c4 {[%clk 00:00:12]} {[%emt 00:00:03]} 36.
b3 {[%clk 00:00:21]} {[%emt 00:00:01]} Ba6 {[%clk 00:00:11]} {[%emt 00:00:02]}
37. bxc4 {[%clk 00:00:21]} {[%emt 00:00:03]} bxc4 {[%clk 00:00:11]} {[%emt
00:00:01]} 38. Kf2 {[%clk 00:00:19]} {[%emt 00:00:04]} Kg7 {[%clk 00:00:07]}
{[%emt 00:00:06]} 39. Nxf5+ {[%clk 00:00:20]} {[%emt 00:00:01]} 1-0

[Event "Campeonato de España Universitario Relámpago"]
[Site "Zaragoza, Spain"]
[Date "2024.04.24"]
[Round "9.5"]
[White "Galiana Fernandez, Adrian"]
[Black "Bringas Gomez, Artai"]
[Result "1-0"]
[TimeControl "3 min + 2 sg"]
[WhiteFideId "32010150"]
[BlackFideId "24534064"]
[WhiteElo "2274"]
[BlackElo "2179"]

1. d4 {[%clk 00:03:03]} Nf6 {[%clk 00:03:04]} 2. c4 {[%clk 00:03:04]} e6 {[%clk
00:03:05]} 3. Nf3 {[%clk 00:03:04]} {[%emt 00:00:03]} d5 {[%clk 00:03:06]} 4.
e3 {[%clk 00:03:03]} {[%emt 00:00:02]} Nbd7 {[%clk 00:02:49]} {[%emt 00:00:19]}
5. Nc3 {[%clk 00:02:50]} {[%emt 00:00:15]} c6 {[%clk 00:02:49]} {[%emt
00:00:02]} 6. Qc2 {[%clk 00:02:45]} {[%emt 00:00:07]} Bd6 {[%clk 00:02:50]} 7.
b3 {[%clk 00:02:46]} {[%emt 00:00:02]} O-O {[%clk 00:02:50]} {[%emt 00:00:02]}
8. Be2 {[%clk 00:02:47]} b6 {[%clk 00:02:33]} {[%emt 00:00:20]} 9. O-O {[%clk
00:02:45]} {[%emt 00:00:03]} Bb7 {[%clk 00:02:33]} {[%emt 00:00:03]} 10. Bb2
{[%clk 00:02:46]} {[%emt 00:00:01]} Qe7 {[%clk 00:02:32]} {[%emt 00:00:03]} 11.
Rad1 {[%clk 00:02:45]} {[%emt 00:00:03]} Rac8 {[%clk 00:02:24]} {[%emt
00:00:10]} 12. e4 {[%clk 00:02:30]} {[%emt 00:00:17]} dxe4 {[%clk 00:02:21]}
{[%emt 00:00:06]} 13. Nxe4 {[%clk 00:02:30]} {[%emt 00:00:01]} Nxe4 {[%clk
00:02:22]} {[%emt 00:00:02]} 14. Qxe4 {[%clk 00:02:30]} {[%emt 00:00:02]} Nf6
{[%clk 00:02:23]} {[%emt 00:00:01]} 15. Qh4 {[%clk 00:02:18]} {[%emt 00:00:14]}
c5 {[%clk 00:02:24]} {[%emt 00:00:02]} 16. Rfe1 {[%clk 00:02:16]} {[%emt
00:00:03]} h6 {[%clk 00:02:20]} {[%emt 00:00:06]} 17. d5 {[%clk 00:02:04]}
{[%emt 00:00:14]} exd5 {[%clk 00:01:54]} {[%emt 00:00:28]} 18. cxd5 {[%clk
00:01:57]} {[%emt 00:00:09]} Qd8 {[%clk 00:01:24]} {[%emt 00:00:33]} 19. Bc4
{[%clk 00:01:38]} {[%emt 00:00:21]} a6 {[%clk 00:01:14]} {[%emt 00:00:12]} 20.
a4 {[%clk 00:01:39]} {[%emt 00:00:01]} Nd7 {[%clk 00:01:10]} {[%emt 00:00:06]}
21. Qg4 {[%clk 00:01:25]} {[%emt 00:00:15]} Nf6 {[%clk 00:01:07]} {[%emt
00:00:04]} 22. Qh4 {[%clk 00:01:18]} {[%emt 00:00:09]} Nd7 {[%clk 00:01:08]} 23.
Qg4 Nf6 {[%emt 00:00:02]} 24. Qf5 {[%clk 00:01:12]} {[%emt 00:00:09]} Qd7
{[%clk 00:01:07]} {[%emt 00:00:05]} 25. Qd3 {[%clk 00:01:12]} Nh5 {[%clk
00:01:00]} {[%emt 00:00:09]} 26. Bxa6 {[%clk 00:01:06]} {[%emt 00:00:09]} Nf4
{[%clk 00:00:57]} {[%emt 00:00:05]} 27. Qf1 {[%clk 00:00:52]} {[%emt 00:00:15]}
Bxa6 {[%clk 00:00:50]} {[%emt 00:00:10]} 28. Qxa6 {[%clk 00:00:53]} {[%emt
00:00:02]} Nxg2 {[%clk 00:00:51]} {[%emt 00:00:01]} 29. Kxg2 {[%clk 00:00:29]}
{[%emt 00:00:26]} Qg4+ {[%clk 00:00:52]} 30. Kf1 {[%clk 00:00:29]} Qxf3 {[%clk
00:00:54]} {[%emt 00:00:01]} 31. Qd3 {[%clk 00:00:15]} {[%emt 00:00:16]} Qh5
{[%clk 00:00:40]} {[%emt 00:00:15]} 32. Kg2 {[%clk 00:00:11]} {[%emt 00:00:06]}
Qg4+ {[%clk 00:00:36]} {[%emt 00:00:06]} 33. Kf1 {[%clk 00:00:10]} {[%emt
00:00:03]} Rce8 {[%clk 00:00:37]} {[%emt 00:00:01]} 34. h3 {[%clk 00:00:06]}
{[%emt 00:00:06]} Qh5 {[%clk 00:00:35]} {[%emt 00:00:04]} 35. Rxe8 {[%clk
00:00:05]} {[%emt 00:00:04]} Rxe8 {[%clk 00:00:37]} 36. Re1 {[%clk 00:00:05]}
{[%emt 00:00:01]} Rxe1+ {[%clk 00:00:24]} 37. Kxe1 {[%clk 00:00:06]} Qg5 {[%clk
00:00:22]} {[%emt 00:00:03]} 38. Kf1 {[%clk 00:00:06]} {[%emt 00:00:02]} Qf4
{[%clk 00:00:23]} {[%emt 00:00:02]} 39. Bc3 {[%clk 00:00:04]} {[%emt 00:00:04]}
h5 {[%clk 00:00:24]} 40. Kg2 {[%clk 00:00:04]} {[%emt 00:00:02]} g5 {[%clk
00:00:15]} {[%emt 00:00:11]} 41. Qf3 {[%clk 00:00:05]} {[%emt 00:00:01]} Qxf3+
{[%clk 00:00:08]} {[%emt 00:00:09]} 42. Kxf3 {[%emt 00:00:01]} Kh7 43. Ke4
{[%clk 00:00:04]} {[%emt 00:00:03]} Kg6 {[%clk 00:00:11]} {[%emt 00:00:02]} 44.
Be5 {[%clk 00:00:05]} Be7 {[%clk 00:00:09]} {[%emt 00:00:04]} 45. d6 {[%clk
00:00:06]} Bd8 {[%clk 00:00:10]} 46. Kd5 {[%clk 00:00:07]} {[%emt 00:00:01]}
Kf5 {[%clk 00:00:09]} {[%emt 00:00:03]} 47. Bc3 {[%clk 00:00:06]} {[%emt
00:00:02]} g4 {[%clk 00:00:08]} {[%emt 00:00:03]} 48. hxg4 {[%clk 00:00:07]}
{[%emt 00:00:02]} Kxg4 {[%clk 00:00:09]} {[%emt 00:00:01]} 49. d7 {[%clk
00:00:07]} {[%emt 00:00:02]} h4 {[%clk 00:00:09]} {[%emt 00:00:01]} 50. Be5
{[%clk 00:00:08]} f5 {[%clk 00:00:03]} {[%emt 00:00:08]} 51. Bh2 {[%clk
00:00:05]} {[%emt 00:00:05]} Kf3 {[%clk 00:00:05]} 52. Kc6 {[%clk 00:00:06]}
Kg2 {[%clk 00:00:06]} {[%emt 00:00:01]} 53. Bc7 {[%clk 00:00:06]} {[%emt
00:00:02]} Be7 {[%clk 00:00:07]} {[%emt 00:00:01]} 54. d8=Q {[%clk 00:00:05]}
{[%emt 00:00:03]} Bxd8 {[%clk 00:00:08]} 55. Bxd8 {[%clk 00:00:05]} {[%emt
00:00:02]} h3 {[%clk 00:00:10]} 56. Bc7 {[%clk 00:00:06]} {[%emt 00:00:02]}
Kxf2 {[%clk 00:00:10]} {[%emt 00:00:03]} 57. Kxb6 {[%clk 00:00:07]} Kf3 {[%clk
00:00:08]} {[%emt 00:00:03]} 58. a5 {[%clk 00:00:07]} {[%emt 00:00:02]} f4
{[%clk 00:00:10]} 59. a6 {[%clk 00:00:06]} {[%emt 00:00:04]} h2 {[%clk
00:00:10]} {[%emt 00:00:02]} 60. a7 {[%clk 00:00:07]} Kg2 {[%clk 00:00:04]}
{[%emt 00:00:09]} 61. a8=Q+ {[%clk 00:00:07]} {[%emt 00:00:01]} Kg1 {[%clk
00:00:03]} {[%emt 00:00:03]} 62. Bxf4 {[%clk 00:00:08]} {[%emt 00:00:02]} h1=Q
{[%clk 00:00:04]} 63. Qxh1+ {[%clk 00:00:08]} {[%emt 00:00:02]} Kxh1 {[%clk
00:00:05]} 64. Kxc5 {[%emt 00:00:02]} Kg2 65. b4 {[%emt 00:00:01]} Kf3 66. b5
{[%clk 00:00:10]} Ke4 {[%clk 00:00:09]} {[%emt 00:00:01]} 67. b6 {[%clk
00:00:12]} Kf5 {[%clk 00:00:11]} 68. b7 {[%clk 00:00:13]} Ke6 {[%clk 00:00:12]}
69. b8=Q {[%clk 00:00:13]} {[%emt 00:00:03]} Kf5 {[%clk 00:00:13]} {[%emt
00:00:01]} 70. Qe5 {[%clk 00:00:14]} {[%emt 00:00:01]} Kg4 {[%clk 00:00:15]} 71.
Qe4 {[%clk 00:00:15]} Kh5 {[%clk 00:00:16]} {[%emt 00:00:01]} 72. Qf5 {[%clk
00:00:15]} {[%emt 00:00:02]} Kh4 {[%clk 00:00:17]} 73. Qg5+ {[%clk 00:00:17]}
Kh3 {[%clk 00:00:19]} 74. Qg3# {[%emt 00:00:01]} 1-0